fUSD/lending_fUSD_20260324
["ID","MTS","AMOUNT","RATE_DAILY","PERIOD"]
[408840493,1774338732255,-500.0,0.00042465,120]
[408840494,1774338732265,-630.80091392,0.00042465,120]
[408840495,1774338732275,-1234.56,0.00042465,120]
[408840496,1774338732285,-500.0,0.00042465,120]
[408840497,1774338732296,-890.18,0.00042465,120]
[408840498,1774338732305,-500.0,0.00042465,120]
[408840499,1774338732315,-500.0,0.00042465,120]
[408840500,1774338732325,-500.0,0.00042465,120]
[408840501,1774338732334,-1024.48,0.00042465,120]
[408840502,1774338732344,-500.0,0.00042465,120]
[408840503,1774338732353,-500.0,0.00042465,120]
[408840504,1774338732362,-500.0,0.00042465,120]
[408840505,1774338732373,-500.0,0.00042465,120]
[408840506,1774338732386,-500.0,0.00042465,120]
[408840507,1774338732395,-766.51,0.00042465,120]
[408840508,1774338732404,-500.0,0.00042465,120]
[408840509,1774338732415,-588.73405739,0.00042465,120]
[408840510,1774338732424,-677.14,0.00042465,120]
[408840511,1774338732433,-2135.18,0.00042465,120]
[408840512,1774338732443,-500.0,0.00042465,120]
[408840513,1774338732453,-563.34,0.00042465,120]
[408840514,1774338732463,-1402.94,0.00042465,120]
[408840515,1774338732473,-761.77,0.00042465,120]
[408840516,1774338732482,-500.0,0.00042465,120]
[408840517,1774338732491,-1465.28,0.00042465,120]
[408840518,1774338732501,-500.0,0.00042465,120]
[408840519,1774338732511,-500.0,0.00042465,120]
[408840520,1774338732520,-500.0,0.00042465,120]
[408840521,1774338732530,-500.0,0.00042465,120]
[408840522,1774338732539,-598.21,0.00042465,120]
[408840523,1774338732549,-500.0,0.00042465,120]
[408840524,1774338732558,-1412.93,0.00042465,120]
[408840525,1774338732567,-500.0,0.00042465,120]
[408840526,1774338732577,-194.94564443,0.00042465,120]
[408840527,1774338732587,-500.0,0.00042465,7]
[408840528,1774338732597,-522.12590753,0.00042465,120]
[408840529,1774338732608,-500.0,0.00042465,120]
[408840530,1774338732618,-623.72924364,0.00042465,120]
[408840531,1774338732630,-500.0,0.00042465,120]
[408840532,1774338732642,-846.4,0.00042465,120]
[408840533,1774338732653,-500.0,0.00042465,120]
[408840534,1774338732664,-500.0,0.00042465,120]
[408840535,1774338732674,-804.53,0.00042465,120]
[408840536,1774338732685,-967.16,0.00042465,120]
[408840537,1774338732696,-862.09,0.00042465,120]
[408840538,1774338732707,-500.0,0.00042465,120]
[408840539,1774338732717,-649.68,0.00042465,120]
[408840540,1774338732732,-897.41,0.00042465,120]
[408840541,1774338733085,-500.0,0.00042465,120]
[408840542,1774338733097,-500.0,0.00042465,120]
[408840543,1774338733107,-500.0,0.00042465,120]
[408840544,1774338733116,-1647.3,0.00042465,120]
[408840545,1774338733125,-500.0,0.00042465,120]
[408840546,1774338733136,-500.0,0.00042465,120]
[408840547,1774338733146,-500.0,0.00042465,120]
[408840548,1774338733156,-500.0,0.00042465,120]
[408840549,1774338733165,-500.0,0.00042465,120]
[408840550,1774338733174,-500.0,0.00042465,120]
[408840551,1774338733184,-932.54,0.00042465,120]
[408840552,1774338733195,-574.08621789,0.00042465,120]
[408840553,1774338733205,-323.73366871,0.00042465,60]
[408840554,1774338733215,-1817.92,0.00042465,120]
[408840555,1774338733225,-500.0,0.00042465,120]
[408840556,1774338733235,-500.0,0.00042465,120]
[408840557,1774338733244,-500.0,0.00042465,120]
[408840558,1774338733254,-500.0,0.00042465,120]
[408840559,1774338733265,-500.0,0.00042465,120]
[408840560,1774338733276,-1328.91,0.00042465,120]
[408840561,1774338733285,-1294.19,0.00042465,120]
[408840562,1774338733297,-500.0,0.00042465,120]
[408840563,1774338733306,-500.0,0.00042465,120]
[408840564,1774338733315,-500.0,0.00042465,120]
[408840565,1774338733325,-3681.23,0.00042465,120]
[408840566,1774338733336,-500.0,0.00042465,120]
[408840567,1774338733345,-500.0,0.00042465,120]
[408840568,1774338733354,-500.0,0.00042465,120]
[408840569,1774338733363,-500.0,0.00042465,120]
[408840570,1774338733374,-557.38171684,0.00042465,120]
[408840571,1774338733385,-644.74,0.00042465,120]
[408840572,1774338733394,-500.0,0.00042465,120]
[408840573,1774338733404,-688.63,0.00042465,120]
[408840574,1774338733413,-500.0,0.00042465,120]
[408840575,1774338733422,-572.14,0.00042465,120]
[408840576,1774338733431,-500.0,0.00042465,120]
[408840577,1774338733440,-500.0,0.00042465,120]
[408840578,1774338733450,-500.0,0.00042465,120]
[408840579,1774338733459,-1109.47,0.00042465,120]
[408840580,1774338733468,-576.11325079,0.00042465,120]
[408840581,1774338733477,-500.0,0.00042465,120]
[408840582,1774338733486,-500.0,0.00042465,120]
[408840583,1774338733495,-222.76253031,0.00042465,120]
[408840584,1774338733504,-500.0,0.00042465,120]
[408840585,1774338733513,-500.0,0.00042465,120]
[408840586,1774338733523,-331.1715248,0.00042465,120]
[408840587,1774338733532,-591.12253806,0.00042465,120]
[408840588,1774338733541,-1361.64,0.00042465,120]
[408840589,1774338733551,-500.0,0.00042465,120]
[408840590,1774338733560,-1113.98,0.00042465,120]
[408840591,1774338733570,-500.0,0.00042465,120]
[408840592,1774338733579,-500.0,0.00042465,120]
[408840593,1774338733588,-500.0,0.00042465,120]
[408840594,1774338733598,-500.0,0.00042465,120]
[408840595,1774338733607,-500.0,0.00042465,120]
[408840596,1774338733617,-500.0,0.00042465,120]
[408840597,1774338733626,-500.0,0.00042465,120]
[408840598,1774338733637,-804.84,0.00042465,120]
[408840599,1774338733647,-587.8,0.00042465,120]
[408840600,1774338733656,-895.35,0.00042465,120]
[408840601,1774338733665,-364.90703477,0.00042465,120]
[408840602,1774338733674,-500.0,0.00042465,15]
[408840603,1774338733684,-500.0,0.00042465,120]
[408840604,1774338733693,-640.6,0.00042465,120]
[408840605,1774338733702,-500.0,0.00042465,120]
[408840606,1774338733712,-500.0,0.00042465,120]
[408840607,1774338733722,-500.0,0.00042465,120]
[408840608,1774338733731,-500.0,0.00042465,120]
[408840609,1774338733741,-500.0,0.00042465,120]
[408840610,1774338733750,-500.0,0.00042465,2]
[408840611,1774338733759,-1353.62,0.00042465,120]
[408840612,1774338733768,-500.0,0.00042465,120]
[408840613,1774338733778,-500.0,0.00042465,120]
[408840614,1774338733787,-663.05,0.00042465,120]
[408840615,1774338733795,-500.0,0.00042465,120]
[408840616,1774338733805,-500.0,0.00042465,120]
[408840617,1774338733814,-2022.99,0.00042465,120]
[408840618,1774338733823,-563.4986762,0.00042465,120]
[408840619,1774338733832,-500.0,0.00042465,120]
[408840620,1774338733842,-500.0,0.00042465,120]
[408840621,1774338733851,-993.61,0.00042465,120]
[408840622,1774338733860,-500.0,0.00042465,120]
[408840623,1774338733870,-601.64960967,0.00042465,120]
[408840624,1774338733879,-500.0,0.00042465,120]
[408840625,1774338733889,-500.0,0.00042465,120]
[408840626,1774338733898,-526.3,0.00042465,120]
[408840627,1774338733907,-500.0,0.00042465,120]
[408840628,1774338733916,-803.74,0.00042465,120]
[408840629,1774338733926,-500.0,0.00042465,120]
[408840630,1774338733935,-500.0,0.00042465,120]
[408840631,1774338733944,-500.0,0.00042465,120]
[408840632,1774338733953,-500.0,0.00042465,120]
[408840633,1774338733962,-593.39,0.00042465,120]
[408840634,1774338733972,-773.48,0.00042465,120]
[408840635,1774338733981,-500.0,0.00042465,120]
[408840636,1774338733990,-500.0,0.00042465,120]
[408840637,1774338733999,-500.0,0.00042465,120]
[408840638,1774338734008,-500.0,0.00042465,120]
[408840639,1774338734017,-500.0,0.00042465,120]
[408840640,1774338734027,-500.0,0.00042465,120]
[408840641,1774338734036,-500.0,0.00042465,120]
[408840642,1774338734047,-1169.17,0.00042465,120]
[408840643,1774338734056,-500.0,0.00042465,120]
[408840644,1774338734065,-500.0,0.00042465,120]
[408840645,1774338734075,-617.32492352,0.00042465,120]
[408840646,1774338734084,-500.0,0.00042465,120]
[408840647,1774338734094,-500.0,0.00042465,120]
[408840648,1774338734103,-500.0,0.00042465,120]
[408840649,1774338734112,-1339.98,0.00042465,120]
[408840650,1774338734122,-370.81465593,0.00042465,120]
[408840651,1774338734132,-500.0,0.00042465,120]
[408840652,1774338734141,-500.0,0.00042465,120]
[408840653,1774338734151,-599.34,0.00042465,120]
[408840654,1774338734160,-538.97561838,0.00042465,120]
[408840655,1774338734170,-551.15,0.00042465,120]
[408840656,1774338734181,-500.0,0.00042465,120]
[408840657,1774338734191,-1698.32,0.00042465,120]
[408840658,1774338734203,-1450.66,0.00042465,120]
[408840659,1774338734213,-500.0,0.00042465,120]
[408840660,1774338734223,-500.0,0.00042465,120]
[408840661,1774338734234,-500.0,0.00042465,120]
[408840662,1774338734243,-818.03,0.00042465,120]
[408840663,1774338734252,-620.94,0.00042465,2]
[408840664,1774338734261,-500.0,0.00042465,120]
[408840665,1774338734270,-500.0,0.00042465,120]
[408840666,1774338734279,-500.0,0.00042465,120]
[408840667,1774338734288,-500.0,0.00042465,120]
[408840668,1774338734298,-500.0,0.00042465,120]
[408840669,1774338734307,-500.0,0.00042465,120]
[408840670,1774338734317,-500.0,0.00042465,120]
[408840671,1774338734326,-500.0,0.00042465,120]
[408840672,1774338734335,-500.0,0.00042465,120]
[408840673,1774338734345,-500.0,0.00042465,120]
[408840674,1774338734354,-277.01138795,0.00042465,120]
[408840675,1774338734363,-1515.34,0.00042465,120]
[408840676,1774338734373,-500.0,0.00042465,120]
[408840677,1774338734388,-500.0,0.00042465,120]
[408840678,1774338734397,-500.0,0.00042465,120]
[408840679,1774338734407,-1009.33,0.00042465,120]
[408840680,1774338734418,-500.0,0.00042465,120]
[408840681,1774338734427,-4192.59,0.00042465,120]
[408840682,1774338734436,-500.0,0.00042465,120]
[408840683,1774338734446,-500.0,0.00042465,120]
[408840684,1774338734456,-500.0,0.00042465,120]
[408840685,1774338734466,-2475.9,0.00042465,120]
[408840686,1774338734475,-500.0,0.00042465,120]
[408840687,1774338734485,-500.0,0.00042465,120]
[408840688,1774338734495,-500.0,0.00042465,120]
[408840689,1774338734504,-2035.37,0.00042465,120]
[408840690,1774338734513,-500.0,0.00042465,120]
[408840691,1774338734522,-500.0,0.00042465,120]
[408840692,1774338734532,-500.0,0.00042465,120]
[408840693,1774338734541,-500.0,0.00042465,120]
[408840694,1774338734551,-857.75,0.00042465,120]
[408840695,1774338734560,-944.17,0.00042465,120]
[408840696,1774338734570,-500.0,0.00042465,120]
[408840697,1774338734579,-500.0,0.00042465,120]
[408840698,1774338734589,-572.97898583,0.00042465,120]
[408840699,1774338734598,-1317.86,0.00042465,30]
[408840700,1774338734607,-500.0,0.00042465,120]
[408840701,1774338734617,-500.0,0.00042465,120]
[408840702,1774338734626,-826.35,0.00042465,120]
[408840703,1774338734637,-588.23,0.00042465,120]
[408840704,1774338734647,-1144.87,0.00042465,120]
[408840705,1774338734657,-500.0,0.00042465,120]
[408840706,1774338734666,-409.47049872,0.00042465,120]
[408840707,1774338734678,-500.0,0.00042465,120]
[408840708,1774338734688,-500.0,0.00042465,120]
[408840709,1774338734698,-895.15,0.00042465,120]
[408840710,1774338734709,-800.0,0.00042465,120]
[408840711,1774338734718,-500.0,0.00042465,120]
[408840712,1774338734728,-1197.62,0.00042465,120]
[408840713,1774338734738,-500.0,0.00042465,120]
[408840714,1774338734747,-1494.6,0.00042465,120]
[408840715,1774338734757,-1086.62,0.00042465,120]
[408840716,1774338734767,-500.0,0.00042465,120]
[408840717,1774338734776,-500.0,0.00042465,120]
[408840718,1774338734786,-500.0,0.00042465,120]
[408840719,1774338734796,-500.0,0.00042465,120]
[408840720,1774338734805,-946.8,0.00042465,120]
[408840721,1774338734815,-500.0,0.00042465,120]
[408840722,1774338734824,-713.74,0.00042465,120]
[408840723,1774338734833,-6072.1,0.00042465,120]
[408840724,1774338734843,-826.7,0.00042465,120]
[408840725,1774338734852,-1989.66,0.00042465,30]
[408840726,1774338734862,-552.86,0.00042465,120]
[408840727,1774338734872,-926.79,0.00042465,120]
[408840728,1774338734884,-500.0,0.00042465,120]
[408840729,1774338734894,-500.0,0.00042465,120]
[408840730,1774338734903,-500.0,0.00042465,120]
[408840731,1774338734912,-2329.55,0.00042465,120]
[408840732,1774338734922,-500.0,0.00042465,120]
[408840733,1774338734932,-444.36524571,0.00042465,120]
[408840734,1774338734942,-500.0,0.00042465,120]
[408840735,1774338734953,-847.68,0.00042465,120]
[408840736,1774338734963,-1646.81,0.00042465,120]
[408840737,1774338734972,-1090.68,0.00042465,120]
[408840738,1774338734981,-500.0,0.00042465,120]
[408840739,1774338734990,-1885.93,0.00042465,120]
[408840740,1774338735000,-741.6,0.00042465,120]
[408840741,1774338735009,-500.0,0.00042465,120]
[408840742,1774338735019,-727.16,0.00042465,120]
[408840743,1774338735027,-500.0,0.00042465,120]
[408840744,1774338735037,-712.06,0.00042465,120]
[408840745,1774338735046,-5833.33,0.00042465,120]
[408840746,1774338735056,-2107.35,0.00042465,120]
[408840747,1774338735065,-500.0,0.00042465,120]
[408840748,1774338735083,-500.0,0.00042465,120]
[408840749,1774338735094,-500.0,0.00042465,120]
[408840750,1774338735104,-500.0,0.00042465,120]
[408840751,1774338735113,-617.58,0.00042465,120]
[408840752,1774338735123,-500.0,0.00042465,120]
[408840753,1774338735132,-500.0,0.00042465,120]
[408840754,1774338735142,-2133.23,0.00042465,120]
[408840755,1774338735151,-500.0,0.00042465,120]
[408840756,1774338735161,-1039.39,0.00042465,120]
[408840757,1774338735170,-2468.56,0.00042465,120]
[408840758,1774338735180,-1366.12,0.00042465,120]
[408840759,1774338735189,-500.0,0.00042465,120]
[408840760,1774338735198,-500.0,0.00042465,120]
[408840761,1774338735207,-1016.32,0.00042465,120]
[408840762,1774338735217,-500.0,0.00042465,120]
[408840763,1774338735227,-784.59,0.00042465,120]
[408840764,1774338735236,-1478.69,0.00042465,120]
[408840765,1774338735246,-1107.99,0.00042465,120]
[408840766,1774338735255,-500.0,0.00042465,120]
[408840767,1774338735264,-1259.9,0.00042465,120]
[408840768,1774338735274,-1114.05,0.00042465,120]
[408840769,1774338735284,-1519.93,0.00042465,120]
[408840770,1774338735294,-646.06,0.00042465,120]
[408840771,1774338735303,-500.0,0.00042465,120]
[408840772,1774338735312,-1266.58,0.00042465,120]
[408840773,1774338735322,-500.0,0.00042465,120]
[408840774,1774338735331,-500.0,0.00042465,120]
[408840775,1774338735341,-500.0,0.00042465,120]
[408840776,1774338735350,-1009.25,0.00042465,120]
[408840777,1774338735360,-500.0,0.00042465,120]
[408840778,1774338735370,-707.37,0.00042465,120]
[408840779,1774338735384,-1156.03,0.00042465,14]
[408840780,1774338735393,-500.0,0.00042465,120]
[408840781,1774338735403,-999.55,0.00042465,120]
[408840782,1774338735412,-970.63,0.00042465,120]
[408840783,1774338735422,-500.0,0.00042465,120]
[408840784,1774338735655,-650.62,0.00042465,30]
[408840785,1774338735667,-725.53,0.00042465,120]
[408840786,1774338735676,-500.0,0.00042465,120]
[408840787,1774338735686,-1014.92,0.00042465,120]
[408840788,1774338735695,-500.0,0.00042465,120]
[408840789,1774338735704,-2689.33,0.00042465,120]
[408840790,1774338735714,-500.0,0.00042465,120]
[408840791,1774338735723,-500.0,0.00042465,120]
[408840792,1774338735732,-500.0,0.00042465,120]
[408840793,1774338735742,-500.0,0.00042465,120]
[408840794,1774338735756,-1544.85,0.00042465,120]
[408840795,1774338735766,-500.0,0.00042465,120]
[408840796,1774338735776,-500.0,0.00042465,120]
[408840797,1774338735785,-1269.14,0.00042465,120]
[408840798,1774338735795,-500.0,0.00042465,120]
[408840799,1774338735804,-500.0,0.00042465,120]
[408840800,1774338735814,-665.15,0.00042465,120]
[408840801,1774338735823,-500.0,0.00042465,120]
[408840802,1774338735832,-680.42,0.00042465,120]
[408840803,1774338735841,-500.0,0.00042465,120]
[408840804,1774338735850,-259.8159963,0.00042465,120]
[408840805,1774338735859,-500.0,0.00042465,120]
[408840806,1774338735869,-500.0,0.00042465,120]
[408840807,1774338735878,-500.0,0.00042465,120]
[408840808,1774338735889,-500.0,0.00042465,120]
[408840809,1774338735899,-1769.26,0.00042465,120]
[408840810,1774338735909,-354.88291609,0.00042465,120]
[408840811,1774338735918,-512.42,0.00042465,120]
[408840812,1774338735928,-500.0,0.00042465,120]
[408840813,1774338735938,-500.0,0.00042465,120]
[408840814,1774338735947,-500.0,0.00042465,120]
[408840815,1774338735957,-500.0,0.00042465,120]
[408840816,1774338735967,-500.0,0.00042465,120]
[408840817,1774338735978,-500.0,0.00042465,120]
[408840818,1774338735988,-500.0,0.00042465,120]
[408840819,1774338735998,-500.0,0.00042465,120]
[408840820,1774338736008,-500.0,0.00042465,120]
[408840821,1774338736017,-1705.77,0.00042465,120]
[408840822,1774338736027,-500.0,0.00042465,120]
[408840823,1774338736037,-500.0,0.00042465,120]
[408840824,1774338736047,-978.43,0.00042465,120]
[408840825,1774338736057,-500.0,0.00042465,120]
[408840826,1774338736069,-500.0,0.00042465,120]
[408840827,1774338736078,-500.0,0.00042465,120]
[408840828,1774338736087,-500.0,0.00042465,120]
[408840829,1774338736096,-500.0,0.00042465,120]
[408840830,1774338736106,-500.0,0.00042465,120]
[408840831,1774338736117,-500.0,0.00042465,120]
[408840832,1774338736126,-500.0,0.00042465,120]
[408840833,1774338736141,-500.0,0.00042465,120]
[408840834,1774338736151,-1215.44,0.00042465,120]
[408840835,1774338736160,-500.0,0.00042465,120]
[408840836,1774338736170,-500.0,0.00042465,120]
[408840837,1774338736179,-227.18224621,0.00042465,120]
[408840838,1774338736189,-500.0,0.00042465,120]
[408840839,1774338736198,-500.0,0.00042465,120]
[408840840,1774338736207,-1046.27,0.00042465,120]
[408840841,1774338736216,-500.0,0.00042465,120]
[408840842,1774338736226,-500.0,0.00042465,120]
[408840843,1774338736235,-1613.72,0.00042465,120]
[408840844,1774338736245,-1897.96,0.00042465,120]
[408840845,1774338736257,-770.58,0.00042465,120]
[408840846,1774338736266,-1960.33,0.00042465,120]
[408840847,1774338736276,-500.0,0.00042465,120]
[408840848,1774338736286,-3056.27,0.00042465,120]
[408840849,1774338736297,-500.0,0.00042465,120]
[408840850,1774338736307,-1228.99,0.00042465,120]
[408840851,1774338736316,-500.0,0.00042465,120]
[408840852,1774338736326,-680.28,0.00042465,120]
[408840853,1774338736336,-500.0,0.00042465,60]
[408840854,1774338736345,-500.0,0.00042465,120]
[408840855,1774338736355,-769.44,0.00042465,120]
[408840856,1774338736365,-500.0,0.00042465,120]
[408840857,1774338736375,-637.86151867,0.00042465,120]
[408840858,1774338736391,-626.0165185,0.00042465,120]
[408840859,1774338736401,-500.0,0.00042465,120]
[408840860,1774338736411,-500.0,0.00042465,120]
[408840861,1774338736422,-500.0,0.00042465,120]
[408840862,1774338736432,-855.78,0.00042465,120]
[408840863,1774338736442,-500.0,0.00042465,120]
[408840864,1774338736453,-500.0,0.00042465,120]
[408840865,1774338736463,-1780.32,0.00042465,120]
[408840866,1774338736472,-1078.9,0.00042465,120]
[408840867,1774338736482,-1099.3,0.00042465,120]
[408840868,1774338736492,-699.82,0.00042465,120]
[408840869,1774338736509,-294.06367394,0.00042465,120]
[408840870,1774338736519,-759.17,0.00042465,120]
[408840871,1774338736529,-500.0,0.00042465,120]
[408840872,1774338736538,-259.65429679,0.00042465,120]
[408840873,1774338736548,-500.0,0.00042465,120]
[408840874,1774338736558,-500.0,0.00042465,120]
[408840875,1774338736568,-931.09,0.00042465,120]
[408840876,1774338736578,-815.17,0.00042465,120]
[408840877,1774338736588,-500.0,0.00042465,120]
[408840878,1774338736598,-656.8,0.00042465,120]
[408840879,1774338736608,-500.0,0.00042465,120]
[408840880,1774338736618,-500.0,0.00042465,120]
[408840881,1774338736627,-500.0,0.00042465,120]
[408840882,1774338736639,-500.0,0.00042465,120]
[408840883,1774338736649,-500.0,0.00042465,120]
[408840884,1774338736659,-671.25,0.00042465,120]
[408840885,1774338736669,-500.0,0.00042465,120]
[408840886,1774338736679,-614.51,0.00042465,120]
[408840887,1774338736688,-1323.85,0.00042465,7]
[408840888,1774338736698,-500.0,0.00042465,14]
[408840889,1774338736708,-500.0,0.00042465,120]
[408840890,1774338736722,-984.57,0.00042465,120]
[408840891,1774338736732,-500.0,0.00042465,120]
[408840892,1774338736741,-500.0,0.00042465,120]
[408840893,1774338736751,-729.45,0.00042465,120]
[408840894,1774338736761,-500.0,0.00042465,120]
[408840895,1774338736771,-500.0,0.00042465,120]
[408840896,1774338736781,-926.4,0.00042465,120]
[408840897,1774338736791,-1291.11,0.00042465,120]
[408840898,1774338736801,-560.4,0.00042465,120]
[408840899,1774338736810,-617.21,0.00042465,120]
[408840900,1774338736819,-500.0,0.00042465,120]
[408840901,1774338736829,-1726.06,0.00042465,120]
[408840902,1774338736839,-500.0,0.00042465,120]
[408840903,1774338736848,-500.0,0.00042465,120]
[408840904,1774338736858,-500.0,0.00042465,120]
[408840905,1774338736868,-500.0,0.00042465,120]
[408840906,1774338736878,-500.0,0.00042465,120]
[408840907,1774338736889,-569.87031961,0.00042465,120]
[408840908,1774338736899,-1356.13,0.00042465,120]
[408840909,1774338736908,-801.87,0.00042465,120]
[408840910,1774338736921,-500.0,0.00042465,120]
[408840911,1774338736931,-557.7526134,0.00042465,120]
[408840912,1774338736941,-500.0,0.00042465,120]
[408840913,1774338736950,-2922.62,0.00042465,60]
[408840914,1774338736960,-500.0,0.00042465,120]
[408840915,1774338736970,-821.12,0.00042465,120]
[408840916,1774338736980,-238.49818876,0.00042465,120]
[408840917,1774338736990,-665.38,0.00042465,120]
[408840918,1774338736999,-500.0,0.00042465,120]
[408840919,1774338737009,-500.0,0.00042465,120]
[408840920,1774338737019,-866.85,0.00042465,120]
[408840921,1774338737029,-500.0,0.00042465,120]
[408840922,1774338737039,-500.0,0.00042465,120]
[408840923,1774338737049,-500.0,0.00042465,120]
[408840924,1774338737060,-500.0,0.00042465,120]
[408840925,1774338737069,-2859.83,0.00042465,120]
[408840926,1774338737079,-500.0,0.00042465,120]
[408840927,1774338737090,-500.0,0.00042465,120]
[408840928,1774338737099,-644.49,0.00042465,120]
[408840929,1774338737112,-4166.66,0.00042465,120]
[408840930,1774338737121,-719.59,0.00042465,120]
[408840931,1774338737131,-500.0,0.00042465,120]
[408840932,1774338737142,-679.57,0.00042465,120]
[408840933,1774338737152,-500.0,0.00042465,120]
[408840934,1774338737162,-599.93,0.00042465,120]
[408840935,1774338737172,-500.0,0.00042465,120]
[408840936,1774338737182,-500.0,0.00042465,120]
[408840937,1774338737192,-500.0,0.00042465,120]
[408840938,1774338737202,-1432.07,0.00042465,120]
[408840939,1774338737212,-500.0,0.00042465,120]
[408840940,1774338737222,-500.0,0.00042465,120]
[408840941,1774338737232,-500.0,0.00042465,120]
[408840942,1774338737242,-500.0,0.00042465,120]
[408840943,1774338737251,-730.01,0.00042465,120]
[408840944,1774338737261,-500.0,0.00042465,120]
[408840945,1774338737272,-508.87,0.00042465,120]
[408840946,1774338737282,-883.47,0.00042465,120]
[408840947,1774338737293,-500.0,0.00042465,120]
[408840948,1774338737303,-500.0,0.00042465,120]
[408840949,1774338737315,-500.0,0.00042465,120]
[408840950,1774338737325,-500.0,0.00042465,120]
[408840951,1774338737336,-500.0,0.00042465,120]
[408840952,1774338737346,-759.73,0.00042465,120]
[408840953,1774338737356,-500.0,0.00042465,120]
[408840954,1774338737366,-1171.93,0.00042465,120]
[408840955,1774338737376,-892.78,0.00042465,120]
[408840956,1774338737390,-749.74,0.00042465,120]
[408840957,1774338737401,-978.13,0.00042465,120]
[408840958,1774338737411,-500.0,0.00042465,120]
[408840959,1774338737422,-165.59045291,0.00042465,120]
[408840960,1774338737432,-674.49,0.00042465,120]
[408840961,1774338737441,-1973.42,0.00042465,120]
[408840962,1774338737452,-1355.12,0.00042465,120]
[408840963,1774338737463,-500.0,0.00042465,120]
[408840964,1774338737472,-500.0,0.00042465,120]
[408840965,1774338737482,-1044.01,0.00042465,120]
[408840966,1774338737492,-786.73,0.00042465,120]
[408840967,1774338737503,-500.0,0.00042465,120]
[408840968,1774338737514,-500.0,0.00042465,120]
[408840969,1774338737524,-500.0,0.00042465,120]
[408840970,1774338737535,-500.0,0.00042465,120]
[408840971,1774338737546,-1476.03,0.00042465,120]
[408840972,1774338737556,-647.98,0.00042465,120]
[408840973,1774338737566,-500.0,0.00042465,120]
[408840974,1774338737576,-947.33,0.00042465,120]
[408840975,1774338737587,-500.0,0.00042465,120]
[408840976,1774338737598,-590.04,0.00042465,120]
[408840977,1774338737608,-299.71882801,0.00042465,120]
[408840978,1774338737619,-924.76,0.00042465,120]
[408840979,1774338737629,-500.0,0.00042465,120]
[408840980,1774338737639,-1633.92,0.00042465,120]
[408840981,1774338737649,-1295.04,0.00042465,120]
[408840982,1774338737659,-500.0,0.00042465,120]
[408840983,1774338737670,-176.66587248,0.00042465,120]
[408840984,1774338737680,-588.11,0.00042465,120]
[408840985,1774338737690,-1441.35,0.00042465,60]
[408840986,1774338737699,-1951.73,0.00042465,120]
[408840987,1774338737718,-476.1374309,0.00042465,120]
[408840988,1774338737730,-500.0,0.00042465,120]
[408840989,1774338737739,-500.0,0.00042465,120]
[408840990,1774338737750,-2782.79,0.00042465,120]
[408840991,1774338737760,-605.44,0.00042465,120]
[408840992,1774338737771,-500.0,0.00042465,120]